fUSD/lending_fUSD_20260225
["ID","MTS","AMOUNT","RATE_DAILY","PERIOD"]
[406626440,1771990240069,-3160.38833939,0.00018,2]
[406626441,1771990240080,-3745228.838514,0.00018,2]
[406626442,1771990240092,-3531.35,0.00018,2]
[406626443,1771990240133,-90264.4699349,0.00018,2]
[406626462,1771990242682,-658.88696035,0.000179,2]
[406626463,1771990242738,-270.13269646,0.000179,2]
[406626464,1771990242750,-187.17694491,0.000179,2]
[406626465,1771990242759,-277206.70867228,0.00018,2]
[406626466,1771990242770,-334624.71852633,0.00018,2]
[406626467,1771990242782,-97126.35862926,0.00018,2]
[406626468,1771990242955,-1163.69555954,0.00018,2]
[406626469,1771990243011,-4592.69195026,0.00018,2]
[406626470,1771990243068,-41944.62611118,0.00018,2]
[406626473,1771990245318,-365117.8697362,0.00018,2]
[406626474,1771990245376,-899.9482543,0.00018,2]
[406626475,1771990245387,-2486.13672743,0.00018,2]
[406626476,1771990245398,-17493.75258268,0.00018,2]
[406626477,1771990245413,-3275.848593,0.00018,2]
[406626478,1771990245655,-4341.46095644,0.00018,2]
[406626479,1771990245667,-616.0,0.00018,2]
[406626480,1771990245690,-8370.59047811,0.00018,2]
[406626484,1771990269156,200.4571,8.058e-05,2]
[406626485,1771990290955,4799.5429,8.124e-05,2]
[406626486,1771990290982,5000.0,8.124e-05,2]
[406626489,1771990383414,4539.0,8.082e-05,2]
[406626490,1771990391057,500.0,0.00045814,120]
[406626491,1771990391287,500.61147476,0.00045814,120]
[406626504,1771990431386,500.0,8.058e-05,2]
[406626527,1771990457103,200.0,0.00045814,30]
[406626528,1771990457716,207.4,0.00045814,30]
[406626530,1771990458360,215.0738,0.00045814,30]
[406626531,1771990458976,223.0315306,0.00045814,30]
[406626533,1771990459610,231.28369723,0.00045814,30]
[406626534,1771990460259,239.84119403,0.00045814,30]
[406626536,1771990460905,248.71531821,0.00045814,30]
[406626537,1771990461564,257.91778498,0.00045814,30]
[406626539,1771990462344,267.46074303,0.00045814,30]
[406626540,1771990463106,277.35679052,0.00045814,30]
[406626541,1771990463638,287.61899177,0.00045814,30]
[406626543,1771990464301,298.26089446,0.00045814,30]
[406626653,1771990538863,-300.0,8.122e-05,2]
[406626654,1771990538890,-170.31599031,8.122e-05,2]
[406626655,1771990538939,-139.68400969,8.122e-05,2]
[406626666,1771990591565,360.31599031,8.023e-05,2]
[406626667,1771990591591,139.68400969,8.023e-05,2]
[406626679,1771990611453,90.0,8.024e-05,2]
[406626680,1771990611480,270.31599031,8.024e-05,2]
[406626681,1771990611506,206.40598288,8.024e-05,2]
[406626682,1771990611533,576.61,8.024e-05,2]
[406626683,1771990611560,576.61,8.024e-05,2]
[406626684,1771990611588,238.11516647,8.024e-05,2]
[406626685,1771990611614,9500.01,8.024e-05,2]
[406626686,1771990611636,10000.01,8.024e-05,2]
[406626687,1771990611662,10000.01,8.024e-05,2]
[406626688,1771990611685,10000.01,8.024e-05,2]
[406626689,1771990611708,10000.01,8.024e-05,2]
[406626690,1771990611737,10000.01,8.024e-05,2]
[406626692,1771990801543,-151.0,8.021e-05,2]
[406626693,1771990801570,-151.0,8.021e-05,2]
[406626694,1771990801599,-500.0,8.023e-05,2]
[406626695,1771990801633,-500.0,8.023e-05,2]
[406626696,1771990801662,-500.0,8.023e-05,2]
[406626697,1771990801692,-500.0,8.023e-05,2]
[406626698,1771990801721,-599.46851628,8.023e-05,2]
[406626699,1771990801752,-500.0,8.023e-05,2]
[406626700,1771990801781,-500.0,8.023e-05,2]
[406626701,1771990801816,-500.0,8.023e-05,2]
[406626702,1771990801845,-500.0,8.023e-05,2]
[406626703,1771990802070,-500.0,8.023e-05,2]
[406626704,1771990802101,-500.0,8.023e-05,2]
[406626705,1771990802131,-500.0,8.023e-05,2]
[406626706,1771990802165,-500.0,8.023e-05,2]
[406626707,1771990802192,-212.30913024,8.023e-05,2]
[406626708,1771990802222,-500.0,8.023e-05,2]
[406626709,1771990802250,-449.76526678,8.023e-05,2]
[406626710,1771990813671,-7321.1323207,8.024e-05,2]
[406626711,1771990819566,160.0,8e-05,30]
[406626712,1771990819767,-10000.01,8.024e-05,2]
[406626713,1771990825726,-10000.01,8.024e-05,2]
[406626714,1771990839056,4360.2489701,8.024e-05,3]
[406626715,1771990859206,200.0,7.7e-05,2]
[406626716,1771990861305,500.0,7.8e-05,2]
[406626717,1771990898078,200.0,7.7e-05,2]
[406626718,1771990900142,400.0,7.8e-05,2]
[406626720,1771991003305,-1954.066,7.864e-05,2]
[406626721,1771991003333,-250.156,7.864e-05,2]
[406626725,1771991228268,5591.566,7.824e-05,2]
[406626726,1771991228481,10000.01,7.824e-05,2]
[406626727,1771991228514,10000.01,7.824e-05,2]
[406626728,1771991228549,10000.01,7.824e-05,2]
[406626729,1771991228578,10000.01,7.824e-05,2]
[406626730,1771991228607,10000.01,7.824e-05,2]
[406626731,1771991228642,10000.01,7.824e-05,2]
[406626732,1771991228672,10000.01,7.824e-05,2]
[406626733,1771991228700,10000.01,7.824e-05,2]
[406626734,1771991228730,10000.01,7.824e-05,2]
[406626735,1771991237361,-3108.444,7.824e-05,2]
[406626736,1771991237451,-10000.01,7.824e-05,2]
[406626737,1771991237566,-10000.01,7.824e-05,2]
[406626738,1771991237682,-10000.01,7.824e-05,2]
[406626739,1771991237791,-10000.01,7.824e-05,2]
[406626740,1771991237958,-10000.01,7.824e-05,2]
[406626741,1771991238070,-10000.01,7.824e-05,2]
[406626742,1771991238175,-10000.01,7.824e-05,2]
[406626743,1771991238431,-10000.01,7.824e-05,2]
[406626746,1771991253575,-700.0,7.7e-05,2]
[406626747,1771991253605,-1400.0,7.8e-05,2]
[406626753,1771991370096,500.0,7.8e-05,2]
[406626757,1771991431531,-216.0,7.821e-05,2]
[406626758,1771991431541,-151.0,7.821e-05,2]
[406626759,1771991431550,-151.0,7.821e-05,2]
[406626760,1771991431561,-91.8984744,7.823e-05,2]
[406626761,1771991431640,-408.1015256,7.823e-05,2]
[406626762,1771991431654,-233.27427959,7.823e-05,2]
[406626763,1771991431664,-106198.28496559,7.824e-05,2]
[406626764,1771991431675,-1254.41808677,7.824e-05,2]
[406626765,1771991431687,-1123.6730129,7.824e-05,2]
[406626770,1771991437621,-4135.55298167,7.824e-05,2]
[406626771,1771991437633,-1028.17508243,7.824e-05,2]
[406626772,1771991437645,-1187.75083997,7.824e-05,2]
[406626773,1771991437755,-2806.24451267,7.824e-05,2]
[406626774,1771991437771,-8199.12932782,7.824e-05,2]
[406626775,1771991437782,-378.29286825,7.824e-05,2]
[406626776,1771991437793,-2899175.33136794,7.824e-05,2]
[406626789,1771991439823,-463.61346648,7.824e-05,2]
[406626790,1771991439843,-801.04957216,7.824e-05,2]
[406626791,1771991440109,-294548.30391535,7.824e-05,2]
[406626792,1771991440119,-2200.0,7.9e-05,2]
[406626793,1771991440128,-217.87498832,7.9e-05,2]
[406626794,1771991440137,-8694.99686328,7.9e-05,2]
[406626795,1771991440147,-250.0,7.924e-05,2]
[406626796,1771991440156,-250.0,7.952e-05,2]
[406626797,1771991440166,-2900.0,8e-05,2]
[406626798,1771991440176,-1216.84373842,8.023e-05,2]
[406626799,1771991440185,-1120.39729549,8.123e-05,2]
[406626800,1771991440194,-150.99,8.219e-05,2]
[406626801,1771991440203,-299.99,8.219e-05,2]
[406626802,1771991440212,-372.9,8.219e-05,2]
[406626803,1771991440221,-9999.99,8.219e-05,2]
[406626804,1771991440230,-488.26002378,8.219e-05,2]
[406626805,1771991440240,-250.0,8.715e-05,2]
[406626806,1771991440249,-526.67941612,0.0001,2]
[406626807,1771991440257,-280.64931491,0.0001,2]
[406626808,1771991440267,-483.93424083,0.0001,2]
[406626809,1771991440276,-195.84872889,0.0001,2]
[406626810,1771991440286,-250.0,0.00010334,2]
[406626811,1771991440305,-500.0,0.00010573,2]
[406626812,1771991440315,-171.869699,0.0001081,2]
[406626813,1771991440324,-597.58791074,0.000109,2]
[406626814,1771991440334,-597.58791072,0.000109,2]
[406626815,1771991440344,-597.58791072,0.000109,2]
[406626816,1771991440354,-1161.2674276,0.00010914,2]
[406626817,1771991440363,-597.58791072,0.00012129,2]
[406626818,1771991440373,-3817.85,0.00012262,2]
[406626820,1771991440382,-8694.99686327,0.0001285,2]
[406626822,1771991440391,-483.93424081,0.00012875,2]
[406626824,1771991440401,-695.12544667,0.00013433,2]
[406626826,1771991440410,-597.58791072,0.00013571,2]
[406626827,1771991440419,-1045.94,0.00013698,2]
[406626828,1771991440429,-1045.94,0.00013698,2]
[406626829,1771991440438,-1045.94,0.00013698,2]
[406626830,1771991440447,-1045.94,0.00013698,2]
[406626831,1771991440457,-1045.94,0.00013698,2]
[406626832,1771991440466,-1045.94,0.00013698,2]
[406626833,1771991440479,-1045.94,0.00013698,2]
[406626834,1771991440488,-1045.94,0.00013698,2]
[406626835,1771991440497,-1045.94,0.00013698,2]
[406626836,1771991440507,-1045.94,0.00013698,2]
[406626837,1771991440517,-1045.94,0.00013698,2]
[406626838,1771991440526,-1045.94,0.00013698,2]
[406626839,1771991440535,-1045.94,0.00013698,2]
[406626840,1771991440547,-1045.94,0.00013698,2]
[406626841,1771991440556,-500.0,0.00013698,2]
[406626842,1771991440566,-500.0,0.00013698,2]
[406626843,1771991440576,-500.0,0.00013698,2]
[406626844,1771991440586,-500.0,0.00013698,2]
[406626845,1771991440595,-500.0,0.00013698,2]
[406626846,1771991440605,-500.0,0.00013698,2]
[406626847,1771991440614,-500.0,0.00013698,2]
[406626848,1771991440624,-500.0,0.00013698,2]
[406626849,1771991440633,-500.0,0.00013698,2]
[406626850,1771991440642,-500.0,0.00013698,2]
[406626851,1771991440652,-500.0,0.00013698,2]
[406626852,1771991440661,-500.0,0.00013698,2]
[406626853,1771991440670,-500.0,0.00013698,2]
[406626854,1771991440683,-500.0,0.00013698,2]
[406626855,1771991440692,-500.0,0.00013698,2]
[406626856,1771991440702,-500.0,0.00013698,2]
[406626857,1771991440711,-500.0,0.00013698,2]
[406626858,1771991440721,-500.0,0.00013698,2]
[406626859,1771991440730,-500.0,0.00013698,2]
[406626860,1771991440740,-500.0,0.00013698,2]
[406626861,1771991440749,-500.0,0.00013698,2]
[406626862,1771991440759,-500.0,0.00013698,2]
[406626863,1771991440768,-500.0,0.00013698,2]
[406626864,1771991440777,-500.0,0.00013698,2]
[406626865,1771991440787,-500.0,0.00013698,2]
[406626866,1771991440796,-500.0,0.00013698,2]
[406626867,1771991440805,-500.0,0.00013698,2]
[406626868,1771991440816,-500.0,0.00013698,2]
[406626869,1771991440825,-500.0,0.00013698,2]
[406626870,1771991440834,-500.0,0.00013698,2]
[406626871,1771991440844,-500.0,0.00013698,2]
[406626872,1771991440854,-500.0,0.00013698,2]
[406626873,1771991440863,-500.0,0.00013698,2]
[406626874,1771991440876,-500.0,0.00013698,2]
[406626875,1771991440885,-500.0,0.00013698,2]
[406626876,1771991440895,-500.0,0.00013698,2]
[406626877,1771991440904,-500.0,0.00013698,2]
[406626878,1771991440914,-500.0,0.00013698,2]
[406626879,1771991440923,-500.0,0.00013698,2]
[406626880,1771991440932,-161.474211,0.00013698,2]
[406626881,1771991440942,-532.53256968,0.00013698,2]
[406626882,1771991440951,-500.0,0.00013698,2]
[406626883,1771991440961,-500.0,0.00013698,2]
[406626884,1771991440970,-500.0,0.00013698,2]
[406626885,1771991440980,-500.0,0.00013698,2]
[406626886,1771991440994,-500.0,0.00013698,2]
[406626887,1771991441004,-500.0,0.00013698,2]
[406626888,1771991441013,-500.0,0.00013698,2]
[406626889,1771991441022,-500.0,0.00013698,2]
[406626890,1771991441031,-500.0,0.00013698,2]
[406626891,1771991441040,-500.0,0.00013698,2]
[406626892,1771991441049,-500.0,0.00013698,2]
[406626893,1771991441060,-500.0,0.00013698,2]
[406626894,1771991441069,-500.0,0.00013698,2]
[406626895,1771991441082,-500.0,0.00013698,2]
[406626896,1771991441091,-500.0,0.00013698,2]
[406626897,1771991441100,-500.0,0.00013698,2]
[406626898,1771991441109,-500.0,0.00013698,2]
[406626899,1771991441119,-500.0,0.00013698,2]
[406626900,1771991441128,-500.0,0.00013698,2]
[406626901,1771991441138,-500.0,0.00013698,2]
[406626902,1771991441147,-500.0,0.00013698,2]
[406626903,1771991441156,-500.0,0.00013698,2]
[406626904,1771991441166,-500.0,0.00013698,2]
[406626905,1771991441175,-500.0,0.00013698,2]
[406626906,1771991441184,-500.0,0.00013698,2]
[406626907,1771991441193,-500.0,0.00013698,2]
[406626908,1771991441203,-500.0,0.00013698,2]
[406626909,1771991441212,-500.0,0.00013698,2]
[406626910,1771991441221,-500.0,0.00013698,2]
[406626911,1771991441230,-500.0,0.00013698,2]
[406626912,1771991441240,-500.0,0.00013698,2]
[406626913,1771991441249,-500.0,0.00013698,2]
[406626914,1771991441259,-500.0,0.00013698,2]
[406626915,1771991441269,-500.0,0.00013698,2]
[406626916,1771991441282,-500.0,0.00013698,2]
[406626917,1771991441291,-506.76,0.00013698,2]
[406626918,1771991441300,-500.0,0.00013698,2]
[406626919,1771991441310,-500.0,0.00013698,2]
[406626920,1771991441321,-500.0,0.00013698,2]
[406626921,1771991441330,-500.0,0.00013698,2]
[406626922,1771991441339,-500.0,0.00013698,2]
[406626923,1771991441350,-500.0,0.00013698,2]
[406626924,1771991441359,-381.95704796,0.00013698,2]
[406626925,1771991441369,-228.42,0.0001395,2]
[406626926,1771991441379,-500.0,0.0001444,2]
[406626927,1771991441388,-3393.93,0.0001444,2]
[406626928,1771991441397,-695.12544667,0.0001455,2]
[406626929,1771991441406,-151.3981792,0.00014879,2]
[406626930,1771991441415,-56194.05,0.0001488,2]
[406626931,1771991441425,-173.91437885,0.00014993,2]
[406626932,1771991441434,-597.58791072,0.00015014,2]
[406626933,1771991441443,-425.41,0.00015205,2]
[406626934,1771991441452,-158.28,0.00015397,2]
[406626935,1771991441461,-695.12544667,0.00015667,2]
[406626936,1771991441471,-150.6335543,0.000159,2]
[406626937,1771991441482,-150.0,0.000159,2]
[406626938,1771991441491,-150.0,0.000159,2]
[406626939,1771991441500,-150.0,0.000159,2]
[406626940,1771991441510,-150.0,0.000159,2]
[406626941,1771991441520,-1045.94,0.00016199,2]
[406626942,1771991441530,-500.0,0.00016199,2]
[406626943,1771991441540,-500.0,0.00016199,2]
[406626944,1771991441549,-500.0,0.00016199,2]
[406626945,1771991441558,-158.28,0.00016423,2]
[406626946,1771991441567,-597.58791072,0.00016457,2]
[406626947,1771991441577,-1066.15,0.00016523,2]
[406626948,1771991441586,-695.12544667,0.00016783,2]
[406626949,1771991441596,-158.28,0.0001745,2]
[406626950,1771991441605,-3700.0,0.000175,6]
[406626951,1771991441614,-150.0,0.00017534,2]
[406626952,1771991441623,-150.0,0.00017589,2]
[406626953,1771991441633,-700.0,0.000176,6]
[406626954,1771991441642,-1706.0844629,0.0001764,2]
[406626955,1771991441651,-150.0,0.00017644,2]
[406626956,1771991441662,-157.0,0.00017698,2]
[406626957,1771991441671,-700.0,0.000177,6]
[406626958,1771991441680,-700.0,0.000178,6]
[406626959,1771991441690,-500.0,0.00017808,2]
[406626960,1771991441700,-500.0,0.00017808,2]
[406626961,1771991441709,-500.0,0.00017808,2]
[406626962,1771991441719,-500.0,0.00017808,2]
[406626963,1771991441728,-500.0,0.00017808,2]
[406626964,1771991441737,-500.0,0.00017808,2]
[406626965,1771991441746,-502.87972863,0.00017808,2]
[406626966,1771991441755,-500.0,0.00017808,2]
[406626967,1771991441765,-500.0,0.00017808,2]
[406626968,1771991441774,-500.0,0.00017808,2]
[406626969,1771991441784,-500.0,0.00017808,2]
[406626970,1771991441794,-988.57229725,0.00017808,2]
[406626971,1771991441803,-988.57229725,0.00017808,2]
[406626972,1771991441812,-988.57229725,0.00017808,2]
[406626973,1771991441822,-988.57229725,0.00017808,2]
[406626974,1771991441831,-988.57229725,0.00017808,2]
[406626975,1771991441840,-988.57229725,0.00017808,2]
[406626976,1771991441849,-988.57229725,0.00017808,2]
[406626977,1771991441859,-988.57229725,0.00017808,2]
[406626978,1771991441878,-988.57229725,0.00017808,2]
[406626979,1771991441888,-988.57229725,0.00017808,2]
[406626980,1771991441898,-988.57229725,0.00017808,2]
[406626981,1771991441907,-988.57229725,0.00017808,2]
[406626982,1771991441917,-988.57229725,0.00017808,2]
[406626983,1771991441926,-800.0,0.00017808,2]
[406626984,1771991441936,-695.12544667,0.000179,2]
[406626985,1771991441946,-483.93424081,0.000179,2]
[406626986,1771991441955,-700.0,0.000179,6]
[406626987,1771991441966,-2257.91581105,0.000179,2]
[406626988,1771991441975,-8694.99686327,0.000179,2]
[406626989,1771991441985,-597.58791072,0.000179,2]
[406626990,1771991441996,-4019.0,0.000179,2]
[406626991,1771991442006,-200.0,0.00017937,2]
[406626992,1771991442015,-195.84872889,0.0001799,2]
[406626993,1771991442027,-3968.4933317,0.00017991,2]
[406626994,1771991442036,-154.86311374,0.00017997,2]
[406626995,1771991442046,-155.0,0.00017999,2]
[406626996,1771991442055,-300.0,0.00017999,2]
[406626997,1771991442067,-300.0,0.00017999,2]
[406626998,1771991442077,-666.0,0.00017999,2]
[406626999,1771991442086,-300.0,0.00017999,2]
[406627000,1771991442095,-666.0,0.00017999,2]
[406627001,1771991442105,-1045.94,0.00017999,2]
[406627003,1771991442115,-1045.94,0.00017999,2]
[406627004,1771991442125,-1045.94,0.00017999,2]
[406627005,1771991442134,-1045.94,0.00017999,2]
[406627006,1771991442144,-1045.94,0.00017999,2]
[406627007,1771991442153,-1045.94,0.00017999,2]
[406627008,1771991442164,-1045.94,0.00017999,2]
[406627009,1771991442173,-1045.94,0.00017999,2]
[406627010,1771991442182,-1046.05716129,0.00017999,2]
[406627011,1771991442192,-500.0,0.00017999,2]
[406627012,1771991442201,-500.0,0.00017999,2]
[406627013,1771991442211,-638.1310629,0.00017999,2]
[406627014,1771991442221,-500.0,0.00017999,2]
[406627015,1771991442230,-500.0,0.00017999,2]
[406627016,1771991442239,-500.0,0.00017999,2]
[406627017,1771991442248,-386.19326799,0.00017999,2]
[406627018,1771991442259,-500.0,0.00017999,2]
[406627019,1771991442268,-500.0,0.00017999,2]
[406627020,1771991442278,-500.0,0.00017999,2]
[406627021,1771991442288,-500.0,0.00017999,2]
[406627022,1771991442297,-500.0,0.00017999,2]
[406627023,1771991442307,-597.30416572,0.00017999,2]
[406627024,1771991442316,-300.0,0.00017999,2]
[406627025,1771991442326,-666.0,0.00017999,2]
[406627026,1771991442336,-7572768.80146282,0.00018,2]
[406627027,1771991442346,-435919.63573255,0.00018,2]
[406627033,1771991442843,-924.40440657,0.00013698,2]
[406627034,1771991442853,-536851.35544007,0.00018,2]
[406627035,1771991442866,-29061.9879656,0.00018,2]
[406627041,1771991445537,-500.0,0.00013698,2]
[406627042,1771991445547,-500.0,0.00013698,2]
[406627043,1771991445556,-500.0,0.00013698,2]
[406627044,1771991445565,-269.06190613,0.00013698,2]
[406627045,1771991445575,-497365.88935237,0.00018,2]
[406627046,1771991445650,-2253.25438014,0.00018,2]
[406627047,1771991447994,500.0,0.00045874,120]
[406627048,1771991448254,500.0,0.00045874,120]
[406627049,1771991448493,500.0,0.00045874,120]
[406627050,1771991448750,500.0,0.00045874,120]
[406627051,1771991448981,500.0,0.00045874,120]
[406627052,1771991449235,500.0,0.00045874,120]
[406627053,1771991449465,241.01696832,0.00045874,120]
[406627054,1771991547363,9500.01,7.724e-05,2]
[406627055,1771991547388,10000.01,7.724e-05,2]
[406627056,1771991547413,10000.01,7.724e-05,2]
[406627057,1771991547437,10000.01,7.724e-05,2]
[406627058,1771991547461,10000.01,7.724e-05,2]
[406627060,1771991554523,-10000.01,7.724e-05,2]
[406627061,1771991554642,-10000.01,7.724e-05,2]
[406627062,1771991554744,-10000.01,7.724e-05,2]
[406627063,1771991554848,-10000.01,7.724e-05,2]
[406627064,1771991554949,-10000.01,7.724e-05,2]
[406627065,1771991604684,-600.0,7.7e-05,2]
[406627066,1771991619680,200.0,0.00045874,30]
[406627067,1771991620274,207.4,0.00045874,30]
[406627068,1771991620872,215.0738,0.00045874,30]
[406627069,1771991621475,223.0315306,0.00045874,30]
[406627070,1771991622160,231.28369723,0.00045874,30]
[406627071,1771991622773,239.84119403,0.00045874,30]
[406627072,1771991623395,248.71531821,0.00045874,30]
[406627073,1771991624110,257.91778498,0.00045874,30]
[406627074,1771991624968,257.91778498,0.00045874,30]
[406627075,1771991643666,8800.01,7.699e-05,2]
[406627076,1771991643687,6964.99,7.699e-05,2]
[406627077,1771991643716,2606.0,7.699e-05,2]
[406627079,1771991881087,13070.15982417,0.00045874,35]
[406627080,1771991902895,1900.0,7.624e-05,2]
[406627081,1771991912657,268.25389569,0.00045874,120]
[406627082,1771992030315,10000.01,7.624e-05,2]
[406627083,1771992030338,10000.01,7.624e-05,2]
[406627084,1771992030360,10000.01,7.624e-05,2]
[406627085,1771992030382,10000.01,7.624e-05,2]
[406627086,1771992030406,10000.01,7.624e-05,2]
[406627087,1771992030428,10000.01,7.624e-05,2]
[406627088,1771992030452,10000.01,7.624e-05,2]
[406627089,1771992095726,200.124,7.472e-05,2]
[406627090,1771992095757,1563.252,7.472e-05,2]
[406627092,1771992206180,775.63584285,0.00045844,120]
[406627094,1771992224564,-300.0,7.623e-05,2]
[406627095,1771992224592,-300.0,7.623e-05,2]
[406627096,1771992224620,-150.0,7.623e-05,2]
[406627097,1771992224646,-831.0,7.623e-05,2]
[406627098,1771992224673,-250.0,7.624e-05,2]
[406627099,1771992234546,299.7140965,0.00045844,120]
[406627176,1771992398683,-1200.0,7.623e-05,2]
[406627177,1771992398705,-300.0,7.623e-05,2]
[406627178,1771992398727,-300.0,7.623e-05,2]
[406627179,1771992398748,-150.0,7.623e-05,2]
[406627180,1771992398770,-50.0,7.623e-05,2]
[406627181,1771992401132,-250.0,7.623e-05,2]
[406627182,1771992401152,-789.23919305,7.623e-05,2]
[406627183,1771992401177,-178.145,7.623e-05,2]
[406627184,1771992401210,-782.61580695,7.624e-05,2]
[406627185,1771992402108,-2000.0,7.624e-05,2]
[406627186,1771992402923,-2000.0,7.624e-05,2]
[406627187,1771992403475,-2000.0,7.624e-05,2]
[406627188,1771992403890,-2000.0,7.624e-05,2]
[406627189,1771992404226,-2000.0,7.624e-05,2]
[406627190,1771992404682,-2000.0,7.624e-05,2]
[406627191,1771992405091,-2000.0,7.624e-05,2]
[406627192,1771992405509,-2000.0,7.624e-05,2]
[406627193,1771992405911,-2000.0,7.624e-05,2]
[406627194,1771992406320,-2000.0,7.624e-05,2]
[406627195,1771992406758,-2000.0,7.624e-05,2]
[406627196,1771992407182,-2000.0,7.624e-05,2]
[406627197,1771992407525,-2000.0,7.624e-05,2]
[406627198,1771992407954,-2000.0,7.624e-05,2]
[406627199,1771992408508,-2000.0,7.624e-05,2]
[406627200,1771992408768,-2000.0,7.624e-05,2]
[406627201,1771992409238,-2000.0,7.624e-05,2]
[406627202,1771992409708,-2000.0,7.624e-05,2]
[406627203,1771992410184,-2000.0,7.624e-05,2]
[406627204,1771992410652,-2000.0,7.624e-05,2]
[406627205,1771992411092,-2000.0,7.624e-05,2]
[406627206,1771992411514,-2000.0,7.624e-05,2]
[406627207,1771992411924,-2000.0,7.624e-05,2]
[406627208,1771992412327,-2000.0,7.624e-05,2]
[406627209,1771992412742,-2000.0,7.624e-05,2]
[406627210,1771992413173,-2000.0,7.624e-05,2]
[406627211,1771992413581,-2000.0,7.624e-05,2]
[406627212,1771992413974,-2000.0,7.624e-05,2]
[406627213,1771992414394,-2000.0,7.624e-05,2]
[406627214,1771992414828,-2000.0,7.624e-05,2]
[406627215,1771992415145,-2000.0,7.624e-05,2]
[406627216,1771992415556,-2000.0,7.624e-05,2]
[406627217,1771992416108,-2000.0,7.624e-05,2]
[406627218,1771992416320,-2000.0,7.624e-05,2]
[406627219,1771992416744,-2000.0,7.624e-05,2]
[406627220,1771992417161,-2000.0,7.624e-05,2]
[406627221,1771992417508,-2000.0,7.624e-05,2]
[406627222,1771992417922,-2000.0,7.624e-05,2]
[406627223,1771992418348,-2000.0,7.624e-05,2]
[406627224,1771992418835,-2000.0,7.624e-05,2]
[406627225,1771992419081,-2000.0,7.624e-05,2]
[406627226,1771992419474,-2000.0,7.624e-05,2]
[406627227,1771992419884,-2000.0,7.624e-05,2]
[406627228,1771992420322,-2000.0,7.624e-05,2]
[406627229,1771992422480,-2000.0,7.624e-05,2]
[406627230,1771992423266,-2000.0,7.624e-05,2]
[406627231,1771992424105,-2000.0,7.624e-05,2]
[406627232,1771992424794,-2000.0,7.624e-05,2]
[406627233,1771992425210,-2000.0,7.624e-05,2]
[406627234,1771992425793,-2000.0,7.624e-05,2]
[406627235,1771992426002,-2000.0,7.624e-05,2]
[406627236,1771992426314,-2000.0,7.624e-05,2]
[406627237,1771992426764,-2000.0,7.624e-05,2]
[406627238,1771992427039,-2000.0,7.624e-05,2]
[406627239,1771992427508,-2000.0,7.624e-05,2]
[406627240,1771992427953,-2000.0,7.624e-05,2]
[406627241,1771992428371,-2000.0,7.624e-05,2]
[406627242,1771992428726,-2000.0,7.624e-05,2]
[406627243,1771992429974,-2000.0,7.624e-05,2]
[406627244,1771992430590,-2000.0,7.624e-05,2]
[406627245,1771992431414,-2000.0,7.624e-05,2]
[406627246,1771992432313,-2000.0,7.624e-05,2]
[406627247,1771992433645,-2000.0,7.624e-05,2]
[406627250,1771992492275,10000.01,7.524e-05,2]
[406627251,1771992492301,10000.01,7.524e-05,2]
[406627252,1771992492323,10000.01,7.524e-05,2]
[406627253,1771992492345,10000.01,7.524e-05,2]
[406627254,1771992492367,3236.634,7.524e-05,2]
[406627255,1771992492389,5000.01,7.524e-05,2]
[406627256,1771992492410,5000.01,7.524e-05,2]
[406627257,1771992492431,5000.01,7.524e-05,2]
[406627258,1771992492451,5000.01,7.524e-05,2]
[406627259,1771992492472,5000.01,7.524e-05,2]
[406627260,1771992492492,5000.01,7.524e-05,2]
[406627261,1771992492513,5000.01,7.524e-05,2]